[Event "Leca Open 2022"]
[Site "Leca da Palmeira"]
[Date "2022.08.04"]
[Round "7.1"]
[White "Nigmatov, Ortik"]
[Black "Krishna C R G"]
[Result "1/2-1/2"]
[ECO "C11"]
[WhiteElo "2437"]
[BlackElo "2430"]
[Annotator "TA"]
[PlyCount "151"]
[EventDate "2022.08.02"]
[EventType "swiss"]
[EventCountry "POR"]
[SourceTitle "playchess.com"]
[Source "ChessBase"]
[SourceQuality "1"]
[TimeControl "5400+30"]

{[%evp 15,151,2,2,0,24,26,28,3,19,-10,43,0,24,20,32,0,0,-31,-24,-36,-30,-17,-27,-26,-25,-33,-31,-25,8,0,70,-96,0,0,0,0,0,26,149,104,122,-24,-14,-15,-16,-16,-16,-14,-31,-13,-13,-106,-105,-102,-98,-89,-83,-88,-77,-83,-45,-257,-258,-254,-157,-305,-300,-280,-297,-290,-287,-622,-99,-232,-234,-224,-145,-233,-202,-206,-196,-197,-163,-176,-115,-129,-118,-202,-202,-200,-207,-214,-52,-220,-147,-153,-27,-20,-26,-19,-19,-32,-8,-8,-8,-8,-8,-81,0,0,8,8,8,0,0,0,0,0,0,0,0,0,8,0,8,8,8,8,8,8,8,8,8,0,8,8,8,8]} 1. e4 {[%emt 0:00:03][%cal Be2e4,Be4e5][%mdl 32]} e6 {[%emt 0:00:04]} 2. d4 {[%emt 0:00:20]} d5 {[%emt 0:00:02]} 3. Nc3 {[%emt 0:00:15]} Nf6 {[%emt 0:00:05]} 4. e5 {[%emt 0:00:23]} Nfd7 {[%emt 0:00:03]} 5. f4 {[%emt 0:00:13]} c5 {[%emt 0:00:07]} 6. Nf3 {[%emt 0:00:05]} Nc6 {[%emt 0:00:06]} 7. Be3 {[%emt 0:00:04]} Be7 {[%emt 0:00:31]} 8. Qd2 {[%emt 0:01:22]} O-O {[%emt 0:00:50]} 9. a3 {[%emt 0:07:56] C11: French: Classical System: 4 e5 and 4 Bg5 dxe4.} Qa5 {[%emt 0:04:22] 9...a6 is the modern continuation.} 10. dxc5 {[%emt 0:10:41]} Bxc5 {[%emt 0:00:59]} 11. Bxc5 {[%emt 0:06:53] White has an edge.} Nxc5 {[%emt 0:00:09]} 12. O-O-O {[%emt 0:03:50]} Rd8 {[%emt 0:05:39]} (12... Bd7 $11) 13. Nb5 {[%emt 0:07:04]} Qxd2+ {[%emt 0:13:35] [#]} (13... Qb6 $5 {[%cal Rc5e4]}) 14. Kxd2 $146 {[%emt 0:00:54]} ({Predecessor:} 14. Rxd2 Ne4 15. Re2 Bd7 16. Nbd4 f6 {½-½ (16) Matsuura,E (2486)-Terry,R (2454) Praia da Pipa 2014}) 14... f6 {[%emt 0:01:25]} 15. Ke3 {[%emt 0:02:29]} g5 {[%emt 0:27:58]} 16. g3 {[%emt 0:10:55]} g4 {[%emt 0:01:35]} 17. Nfd4 {[%emt 0:01:09]} fxe5 {[%emt 0:00:33]} 18. fxe5 {[%emt 0:00:11]} Nxe5 {[%emt 0:01:12]} 19. b4 {[%emt 0:06:07]} (19. Kf4 $2 Nf7 20. Re1 Ne4 21. Nxe6 Bxe6 $19) 19... Na4 {[%emt 0:05:05][%cal Bc5a4,Ba4c3,Bc3e4][%mdl 32]} 20. Nc7 {[%emt 0:06:49][%csl LRa8,LRe6]} Rb8 {[%emt 0:00:34] And now ...Nb2 would win.} 21. Re1 {[%emt 0:10:09]} Nc3 {[%emt 0:20:16]} 22. Bg2 {[%emt 0:01:39]} (22. Kf4 $2 Ng6+ 23. Ke3 e5 $19) 22... Rd6 {[%emt 0:06:29]} (22... Ne4 $11) 23. Kf2 $2 {[%emt 0:16:18]} (23. Kd2 $14 {keeps the upper hand.} Ne4+ 24. Kc1 (24. Bxe4 dxe4 25. Rxe4 Ng6 $11)) 23... Nf3 {[%emt 0:01:33]} (23... Nc4 $17 24. Ne8 Rb6 25. Nf6+ Kh8 26. Nxg4 Nxa3) 24. Bxf3 $11 {[%emt 0:01:23]} (24. Nxf3 $2 gxf3 25. Bxf3 Bd7 $19) 24... gxf3 {[%emt 0:00:02]} 25. Kxf3 {[%emt 0:00:16][%cal Rc7e6,Bf2f3,Bf3f4,Bf4e5][%mdl 32]} Ne4 {[%emt 0:06:34]} 26. Kf4 {[%emt 0:00:24]} Bd7 {[%emt 0:00:33]} (26... Rd8 $11 {remains equal.}) 27. Ke5 $16 {[%emt 0:01:22]} Rb6 {[%emt 0:00:05]} 28. c4 {[%emt 0:01:21]} ({Only move:} 28. Rxe4 $16 dxe4 29. c4) 28... Nf2 $11 {[%emt 0:00:08]} 29. c5 {[%emt 0:03:01]} (29. cxd5 $2 exd5 30. Rhg1 (30. Nxd5 $2 Re8+ 31. Ne7+ Rxe7+ $19) 30... Nd3+ 31. Kxd5 Nxe1 32. Rxe1 Rc8 $19) 29... Ng4+ {[%emt 0:00:09]} (29... Nd3+ $2 30. Kf6 Rc6 31. Nxc6 Bxc6 32. Re2 $18 (32. Kxe6 d4 $18)) 30. Kf4 {[%emt 0:00:07]} e5+ {[%emt 0:00:05]} 31. Rxe5 {[%emt 0:01:28] Active counter play!} Rf6+ {[%emt 0:00:37]} 32. Rf5 $1 {[%emt 0:00:11]} Bxf5 {[%emt 0:00:40]} 33. Nxd5 {[%emt 0:00:18]} (33. Nxf5 $11 Rbf8 34. Kxg4 Rxf5 35. Rd1) 33... Bd7+ $17 {[%emt 0:03:21]} 34. Nxf6+ {[%emt 0:00:05]} Nxf6 {[%emt 0:00:01]} 35. Ke5 {[%emt 0:00:05]} Rf8 {[%emt 0:00:12]} 36. b5 {[%emt 0:00:59]} Bh3 {[%emt 0:00:16]} 37. c6 {[%emt 0:00:39]} bxc6 {[%emt 0:00:03]} 38. bxc6 $2 {[%emt 0:00:05]} (38. Nxc6 $15 Rf7 39. Re1) 38... Ng4+ $19 {[%emt 0:00:24]} 39. Kd6 {[%emt 0:00:45]} Nf2 {[%emt 0:00:02]} 40. Rb1 {[%emt 0:00:37]} (40. Rg1 $17 {was the only defense.}) 40... Rd8+ {[%emt 0:00:13]} 41. Ke5 {[%emt 0:01:02]} Ng4+ {[%emt 0:00:40]} 42. Ke4 {[%emt 0:00:21]} Bg2+ {[%emt 0:00:10]} (42... Nxh2 43. c7 Rc8 44. Rc1 $17) 43. Kf5 $2 {[%emt 0:00:28]} (43. Kd3 Bxc6 44. h4) 43... Ne3+ $2 {[%emt 0:02:52]} (43... Rxd4 $19 {and Black stays clearly on top.} 44. c7 Ne3+ 45. Ke6 Rc4) 44. Ke5 {[%emt 0:00:31]} (44. Kf4 $17 {keeps fighting.} Re8 45. g4) 44... Nc4+ $1 {[%emt 0:00:13]} 45. Kf6 {[%emt 0:00:20]} Nb6 {[%emt 0:01:55]} (45... Nxa3 46. Rc1 $11) ({Inferior is} 45... Bxc6 46. Nxc6 Rd6+ 47. Kf5 Rxc6 48. Rb8+ Kf7 49. Rb7+ Ke8 50. Rxa7 $17) 46. Ne6 {[%emt 0:00:35]} (46. Re1 $17) 46... Re8 {[%emt 0:00:22] aiming for ...Nd5+.} ({Stronger than} 46... Rc8 47. c7 $15) 47. c7 {[%emt 0:00:43]} Bh3 {[%emt 0:00:36]} 48. Nf4 {[%emt 0:00:01]} Bd7 {[%emt 0:00:12]} 49. Rc1 {[%emt 0:00:51]} Kf8 {[%emt 0:00:36]} (49... Bc8 $19 50. Kg5 Re5+ 51. Kh6 Nd7) 50. Rc5 {[%emt 0:00:13] [#]} Bc8 $1 {[%emt 0:00:19]} 51. Rc2 {[%emt 0:00:33]} (51. Ra5 $17) 51... Nd7+ {[%emt 0:00:12]} 52. Kg5 {[%emt 0:00:09]} Re5+ {[%emt 0:00:26]} 53. Kh6 {[%emt 0:00:24] [#]} Kg8 $2 {[%emt 0:00:29]} (53... Ra5 $1 $19 54. Rf2 Kg8) 54. Rc6 $2 {[%emt 0:00:40]} (54. Re2 $1 $15) 54... Rf5 {[%emt 0:00:49] ( -> ...Ne5)} 55. Rd6 {[%emt 0:01:19]} Rf6+ {[%emt 0:01:00]} (55... Ra5 $17 56. Ne6 Rxa3) 56. Rxf6 $11 {[%emt 0:00:01]} Nxf6 {[%emt 0:00:04]} 57. h3 {[%emt 0:00:04] Prevents Ng4+.} Kh8 {[%emt 0:00:49]} 58. g4 {[%emt 0:00:39]} Ng8+ {[%emt 0:00:02]} 59. Kg5 {[%emt 0:00:05]} Kg7 {[%emt 0:00:02]} 60. Nd5 {[%emt 0:00:15]} Kf7 {[%emt 0:00:32] Strongly threatening ...Ke6.} 61. Nc3 $1 {[%emt 0:00:52]} Ne7 {[%emt 0:01:31]} ({Better is} 61... Ke8 $17 {Threatens to win with ...Kd7.} 62. Nb5 a5 63. Nd6+ Kd7 64. Nxc8 Kxc8) 62. Kh6 {[%emt 0:00:16] The position is equal.} Ke6 {[%emt 0:00:27]} 63. Kxh7 {[%emt 0:00:17]} Kd7 $132 {[%emt 0:00:16][%mdl 2048] Black is not keeping still} 64. Nb5 {[%emt 0:01:00]} Nc6 {[%emt 0:00:05]} 65. g5 {[%emt 0:01:12] Black must now prevent g6.} a6 {[%emt 0:00:03]} 66. Nc3 {[%emt 0:00:39] h4 is the strong threat.} Kxc7 {[%emt 0:00:01]} 67. h4 {[%emt 0:00:18][%cal Bh3h4,Bh4h5][%mdl 32]} Kd6 {[%emt 0:00:52]} 68. g6 {[%emt 0:00:24]} Ne7 {[%emt 0:00:30]} 69. h5 {[%emt 0:01:18]} Bf5 {[%emt 0:00:15]} 70. Kg7 {[%emt 0:00:11]} Nxg6 {[%emt 0:02:00]} 71. hxg6 {[%emt 0:00:30] Hoping for Kf6. KB-KN} Kc5 {[%emt 0:00:01]} 72. Kf6 {[%emt 0:00:48]} Bxg6 $1 {[%emt 0:00:06]} 73. Kxg6 {[%emt 0:00:02]} Kc4 {[%emt 0:00:04]} 74. Ne4 {[%emt 0:00:59]} Kb3 {[%emt 0:00:05]} 75. Nc5+ {[%emt 0:00:10]} Kxa3 {[%emt 0:00:04]} 76. Nxa6 {[%emt 0:00:03] Black had all chances to win.  Weighted Error Value: White=0.47/Black=0.46} 1/2-1/2

[Event "Leca Open 2022"]
[Site "Leca da Palmeira"]
[Date "2022.08.03"]
[Round "7.2"]
[White "Motylev, Alexander"]
[Black "Martinez Duany, Lelys Stanley"]
[Result "1/2-1/2"]
[ECO "B31"]
[WhiteElo "2632"]
[BlackElo "2497"]
[Annotator "TA"]
[PlyCount "48"]
[EventDate "2022.08.02"]
[EventType "swiss"]
[EventCountry "POR"]
[SourceTitle "playchess.com"]
[Source "ChessBase"]
[SourceQuality "1"]
[TimeControl "5400+30"]

{[%evp 17,48,16,17,0,16,0,16,-9,11,0,0,0,0,0,0,0,0,-1,-12,-15,0,-3,0,0,0,0,0,0,0,0,0,-1,0]} 1. e4 {[%emt 0:00:04]} c5 {[%emt 0:07:36]} 2. Nf3 {[%emt 0:00:11]} Nc6 {[%emt 0:00:35]} 3. Bb5 {[%emt 0:00:25]} g6 {[%emt 0:00:10]} 4. O-O {[%emt 0:00:22]} Bg7 {[%emt 0:00:06]} 5. Re1 {[%emt 0:00:40]} Nf6 {[%emt 0:01:10]} 6. c3 {[%emt 0:00:42]} O-O {[%emt 0:00:32]} 7. d4 {[%emt 0:00:26]} cxd4 {[%emt 0:00:56]} 8. cxd4 {[%emt 0:00:30]} d5 {[%emt 0:00:24]} 9. e5 {[%emt 0:00:23]} Ne4 {[%emt 0:00:09] The position is equal.} 10. Be3 {[%emt 0:10:16] B31: Sicilian: 2...Nc6 3 Bb5 g6.} Qb6 {[%emt 0:06:23]} 11. Bxc6 {[%emt 0:00:30]} Qxc6 {[%emt 0:00:42]} 12. Nbd2 {[%emt 0:00:35]} Bg4 {[%emt 0:03:32] [#]} 13. Qb3 $146 {[%emt 0:03:17]} ({Predecessor:} 13. h3 Nxd2 14. hxg4 Nxf3+ 15. Qxf3 Rac8 16. Rac1 Qb5 17. b3 f6 18. exf6 Bxf6 19. Qh3 Rxc1 20. Rxc1 {1-0 (58) Grigoriants,S (2542)-Ismagambetov,A (2528) Chess.com INT 2020}) 13... Nxd2 {[%emt 0:01:26]} 14. Nxd2 {[%emt 0:03:40]} Rfc8 {[%emt 0:00:14]} 15. Bg5 {[%emt 0:02:57]} Qd7 {[%emt 0:02:28]} 16. h3 {[%emt 0:03:58]} Be6 {[%emt 0:03:00]} 17. Rac1 {[%emt 0:03:01]} h6 {[%emt 0:02:00]} 18. Be3 {[%emt 0:01:02]} b6 {[%emt 0:00:10][%cal Og7e5]} (18... Bxe5 {looks sharper.} 19. dxe5 d4 20. Qd3 Rxc1 21. Rxc1 dxe3 22. Qxe3 Rc8) 19. Qa3 {[%emt 0:11:19]} Bf8 {[%emt 0:02:13]} 20. Nf1 {[%emt 0:02:19]} a5 {[%emt 0:02:20]} 21. Qb3 {[%emt 0:06:14]} Qb7 {[%emt 0:03:08]} 22. Qd3 {[%emt 0:06:36]} Qd7 {[%emt 0:00:53]} 23. Qb3 {[%emt 0:03:44]} Qb7 {[%emt 0:00:10]} 24. Qd3 {[%emt 0:00:27]} Qd7 {[%emt 0:00:07] An uneventful encounter.  Weighted Error Value: White=0.05 (flawless) /Black=0.03 (flawless)} 1/2-1/2

[Event "Leca Open 2022"]
[Site "Leca da Palmeira"]
[Date "2022.08.03"]
[Round "7.3"]
[White "Abdisalimov, Abdimalik"]
[Black "Perez Candelario, Manuel"]
[Result "0-1"]
[ECO "D35"]
[WhiteElo "2437"]
[BlackElo "2578"]
[Annotator "TA"]
[PlyCount "98"]
[EventDate "2022.08.02"]
[EventType "swiss"]
[EventCountry "POR"]
[SourceTitle "playchess.com"]
[Source "ChessBase"]
[SourceQuality "1"]
[TimeControl "5400+30"]

{[%evp 19,98,15,36,15,28,15,12,15,35,26,44,33,58,56,49,37,44,7,13,18,20,16,17,16,0,15,16,12,18,16,34,18,45,13,24,0,0,0,0,-1,0,0,0,0,0,0,0,0,0,0,0,-64,-107,-140,-138,-185,-183,-285,-287,-260,-193,-168,0,-277,-224,-260,-141,-400,-406,-472,-441,-496,-476,-484,-483,-520,-316,-1395,-1378,-1224,-1147]} 1. d4 {[%emt 0:00:47] Baburin,A} d5 {[%emt 0:00:05]} 2. c4 e6 {[%emt 0:00:08]} 3. Nc3 {[%emt 0:01:41]} Nf6 {[%emt 0:00:04]} 4. cxd5 {[%emt 0:00:05]} exd5 {[%emt 0:00:04]} 5. Bg5 {[%emt 0:00:04]} Be7 {[%emt 0:00:05]} 6. e3 {[%emt 0:00:04]} c6 {[%emt 0:00:10]} 7. Bd3 {[%emt 0:00:07]} Nbd7 {[%emt 0:00:13]} 8. Qc2 {[%emt 0:00:09]} Nh5 {[%emt 0:00:38]} 9. Bxe7 {[%emt 0:00:45]} Qxe7 {[%emt 0:00:04]} 10. Nge2 {[%emt 0:00:09]} Nb6 {[%emt 0:04:04]} 11. Rb1 {[%emt 0:05:55] [#] D36: Queen's Gambit Declined: Exchange Variation: Main line (5 Bg5 c6 6 Qc2).} Qg5 $146 {[%emt 0:12:49]} ({Predecessor:} 11... g6 12. b4 a6 13. a4 O-O 14. a5 Nd7 15. Na4 f5 16. O-O Ndf6 17. Qc1 Be6 18. Bc2 Ne4 {0-1 (39) Bareev,E (2709)-Boensch,U (2547) Germany 2000 CBM 076 [Baburin,A]}) 12. Ng3 {[%emt 0:06:39]} Nxg3 {[%emt 0:03:04]} 13. hxg3 {[%emt 0:01:49] The position is equal.} h5 {[%emt 0:03:31]} 14. b4 {[%emt 0:01:10]} Bd7 {[%emt 0:12:05]} 15. a4 {[%emt 0:09:06][%cal Ba2a4,Ba4a5][%mdl 32]} Kf8 {[%emt 0:06:12]} 16. a5 {[%emt 0:03:13]} Nc4 {[%emt 0:05:24]} 17. Bxc4 {[%emt 0:14:30]} dxc4 {[%emt 0:00:04]} 18. Qe2 {[%emt 0:00:10]} (18. Ne2 $5 {[%cal Rc2c4]}) 18... Be6 {[%emt 0:05:11]} 19. Qf3 {[%emt 0:02:26]} Re8 {[%emt 0:09:57]} 20. a6 {[%emt 0:06:07]} Bg4 {[%emt 0:07:19]} 21. Qf4 {[%emt 0:00:30]} Qxf4 {[%emt 0:00:13]} 22. gxf4 {[%emt 0:00:03]} b5 {[%emt 0:00:25]} 23. e4 {[%emt 0:00:35]} Rh6 {[%emt 0:03:21]} 24. f3 {[%emt 0:02:37]} Bc8 {[%emt 0:00:32]} 25. Kf2 {[%emt 0:00:33]} h4 {[%emt 0:04:53]} 26. Rhd1 {[%emt 0:02:28]} Rd8 {[%emt 0:01:40]} 27. Ke3 {[%emt 0:01:24]} f5 {[%emt 0:01:19]} ({Don't play} 27... Bxa6 28. Ra1 Bc8 29. Rxa7 $16) 28. Rh1 {[%emt 0:09:24]} Kf7 {[%emt 0:00:53]} 29. Ra1 {[%emt 0:01:35]} fxe4 {[%emt 0:02:26]} 30. fxe4 {[%emt 0:00:04]} Rg6 {[%emt 0:00:09]} 31. Ne2 {[%emt 0:00:03] Against Rg3+} Rxg2 {[%emt 0:00:15] [#] aiming for ...Bg4.} 32. Rxh4 {[%emt 0:00:58]} Bg4 {[%emt 0:02:07][%csl Gg4][%cal Rg2e2]} 33. Ng1 {[%emt 0:00:13]} c3 {[%emt 0:00:39] Hoping for ...c2.} 34. Rc1 {[%emt 0:00:48]} c2 {[%emt 0:00:26] Strongly threatening ...Bd1.} 35. Rxg4 {[%emt 0:02:44]} Rxg4 $11 {[%emt 0:00:04][%mdl 4096] Endgame KRR-KRN} 36. Ne2 {[%emt 0:00:10] [#]} Rh8 $1 {[%emt 0:01:29]} 37. Kf3 {[%emt 0:00:08]} (37. d5 $17 cxd5 38. Rxc2) 37... Rg6 $19 {[%emt 0:01:20]} 38. Rxc2 {[%emt 0:00:02]} (38. e5 {might work better.}) 38... Rh3+ {[%emt 0:00:05]} 39. Kf2 {[%emt 0:00:03]} Rh2+ {[%emt 0:00:27]} 40. Kf3 {[%emt 0:00:03]} Rh3+ {[%emt 0:02:34]} (40... Ke8 $142 41. e5 Rgg2) 41. Kf2 {[%emt 0:00:01]} Rb3 {[%emt 0:01:17]} 42. e5 {[%emt 0:00:11]} Rxb4 {[%emt 0:00:41]} (42... Rh6 $19 43. Kg2 Ke8) 43. Kf3 $2 {[%emt 0:00:38][%mdl 8192] Now White is beyond hope.} (43. d5 $17 {was the only defense.} cxd5 44. Rc7+ Kg8 45. Rxa7) 43... Rc4 {[%emt 0:01:03]} 44. Rd2 {[%emt 0:00:01]} b4 {[%emt 0:00:41][%cal Bb5b4,Bb4b3][%mdl 32]} 45. f5 {[%emt 0:01:57]} Rh6 {[%emt 0:00:06] Threatens to win with ...b3.} 46. e6+ {[%emt 0:00:52]} Ke8 {[%emt 0:01:24] ...b3 is the strong threat.} 47. Nf4 {[%emt 0:00:41]} Rh1 {[%emt 0:00:41]} 48. Ng6 $2 {[%emt 0:02:02]} (48. f6 gxf6 49. Rg2 Rf1+ 50. Ke3 Re1+ 51. Kd2) 48... b3 {[%emt 0:01:39]} 49. Rb2 {[%emt 0:00:50]} Rc2 {[%emt 0:00:37] Weighted Error Value: White=0.41/Black=0.20 (precise)} 0-1

[Event "Leca Open 2022"]
[Site "Leca da Palmeira"]
[Date "2022.08.03"]
[Round "7.4"]
[White "Spraggett, Kevin"]
[Black "Garcia Dorado, Alberto"]
[Result "1-0"]
[ECO "A06"]
[WhiteElo "2487"]
[BlackElo "2206"]
[Annotator "TA"]
[PlyCount "78"]
[EventDate "2022.08.02"]
[EventType "swiss"]
[EventCountry "POR"]
[SourceTitle "playchess.com"]
[Source "ChessBase"]
[SourceQuality "1"]
[TimeControl "5400+30"]

{[%evp 15,78,-10,-14,-9,22,35,84,77,76,83,104,87,84,85,98,83,85,94,80,67,79,19,104,78,87,78,109,49,99,52,89,83,93,-498,131,-1224,95,-1413,207,212,198,148,190,138,128,128,204,158,688,0,256,0,260,220,355,349,316,127,281,160,159,161,175,153,272]} 1. Nf3 d5 2. g3 Bg4 3. Bg2 Nd7 4. O-O Ngf6 5. b3 e6 6. Bb2 Bd6 7. Na3 c6 8. c4 O-O 9. Nc2 {A12: English Opening: 1...c6 with b3 by White.} Bxf3 {[#]} 10. exf3 $146 ({Predecessor:} 10. Bxf3 Ne5 11. Bxe5 Bxe5 12. d4 Bd6 13. Qd3 Qc7 14. Ne3 Rad8 15. Rfd1 Rfe8 16. Rab1 Qe7 {½-½ (27) Van den Bos,H (2478)-Mercadal Benejam,J (2506) ICCF email 2005}) 10... c5 (10... Qb6 $14) 11. cxd5 $16 {White is better.} Nxd5 12. f4 {Against Be5} N7b6 13. Ne3 (13. Qg4 g6 $11) 13... Rc8 14. f5 Nxe3 15. dxe3 {fxe6 is the strong threat.} exf5 16. Bxb7 Rc7 17. Bg2 Qe7 18. h3 (18. Rc1 $16) 18... f6 (18... Be5 $11 {remains equal.} 19. Bxe5 Qxe5) 19. Qd3 $40 {[%mdl 128] White has strong attack.} g6 20. Rfd1 Rd8 21. Qb5 (21. a4 $16) 21... Kg7 (21... Be5 $14 22. Rxd8+ Qxd8 23. Bxe5 fxe5) 22. a4 ({White should play} 22. Rac1 $16) 22... c4 {[#]} 23. a5 $1 Nd7 24. Qxc4 {[%mdl 8192]} Ne5 $2 (24... Rxc4 $19 25. bxc4 Nc5) 25. Qc2 $2 {[%mdl 8192] White is more active.} Bb4 $2 (25... Rxc2 $19 26. Bd4 Bc5) 26. a6 $2 {[%mdl 8192]} Qc5 $4 {[%mdl 8192]} (26... Rxc2 $19 27. Bd4 Bc3) 27. Qe2 Rxd1+ 28. Qxd1 (28. Rxd1 $18 {Threatens to win with Rc1.} Qa5 29. Bd4) 28... Qb6 29. Bb7 {This bishop pair is nice.} ({Better is} 29. Qd5 $18) 29... Bc5 {[%cal Oc5e3]} 30. Kg2 Qb4 (30... Rd7 $16 31. Qc2 Qd6) 31. Qd8 Bb6 (31... Rxb7 $16 32. axb7 Qxb7+ 33. Kg1 Be7) 32. Qe8 $2 (32. Bd5 Qf8 33. Qxf8+ Kxf8 $16) (32. Ba3 $18 Rc2 33. Qe8 (33. Bxb4 Bxd8 34. Rd1 Bc7 $18) 33... Rxf2+ 34. Kxf2 Qd2+ 35. Kf1 Qd3+ 36. Kg2) 32... Qd6 {[%mdl 8192]} (32... Rxb7 $1 $11 33. axb7 Qe4+ 34. Kf1 Qh1+ 35. Ke2 Qf3+ 36. Ke1 Bxe3 37. Qe7+ (37. fxe3 Qxe3+ 38. Kd1 Qd3+ 39. Ke1 Qe3+ 40. Kf1 Qf3+ 41. Kg1 Qe3+ 42. Kf1 Qf3+ 43. Kg1 Qe3+ 44. Kf1 $11) 37... Kh6 38. fxe3 Qxe3+ 39. Kf1 Qf3+ 40. Kg1 Qxg3+ 41. Kh1 (41. Kf1 Qxh3+ 42. Ke2 Qg2+ 43. Kd1 Qf1+ 44. Kd2 Qd3+ 45. Ke1 Qe3+ 46. Kd1 Qxb3+ 47. Kc1 Qc4+ 48. Kd2 Qd5+ 49. Ke1 Qe4+ 50. Kd2 Nf3+ 51. Kc3 Qxe7 $11) 41... Qxh3+ 42. Kg1 Qg3+ 43. Kh1 Qh3+ 44. Kg1 Qg3+ 45. Kh1 Qh3+) 33. h4 $2 ({White must play} 33. Ba3 $18 Bc5 34. Bxc5 Qxc5 35. Rd1) 33... h6 $2 {[%mdl 8192]} (33... Rc2 $11 {and Black is okay.} 34. Ba3 Bc5 35. Bxc5 Qxc5) 34. h5 gxh5 (34... Qd7 $142 35. Qxd7+ Rxd7) 35. Qxh5 $18 Qe6 36. Qd1 ({Less strong is} 36. Rh1 Ng4 37. Rc1 (37. Bf3 Bxe3 38. Bxg4 fxg4 $11) 37... Rd7 $14) (36. Rd1 $18 {is more deadly.}) 36... Nc6 $2 (36... Rd7 $16 37. Qc2 Rc7) 37. Bxc6 (37. Rc1 $18) 37... Qxc6+ $16 {White is clearly better.} 38. Qf3 {aiming for Rc1.} Qe6 39. b4 {Black must now prevent Rd1.} Kg6 {Weighted Error Value: White=1.05/Black=1.19} (39... Qb3 $16 {was called for.}) 1-0